bitfinex/quotes_BTCUSD_20210101
["timestamp","ask_amount","ask_price","bid_price","bid_amount"]
[1609465683275,0.00204939,29377.0,29370.0,0.70152099]
[1609465683471,0.00204939,29377.0,29371.0,0.24662099]
[1609465684972,0.00204939,29377.0,29372.0,0.2090018]
[1609465685176,0.00204939,29377.0,29374.0,0.51]
[1609465685573,0.00205123,29378.0,29374.0,0.51]
[1609465686197,0.00205123,29378.0,29374.0,0.65016293]
[1609465686503,0.00205155,29377.0,29375.0,0.215]
[1609465687199,0.00205155,29377.0,29375.0,0.35516293]
[1609465688600,0.99705155,29385.0,29375.0,0.14016293]
[1609465688807,0.98600008,29384.0,29376.0,3.02162099]
[1609465689003,0.98600008,29387.0,29380.0,0.5099]
[1609465689202,1.361262,29386.0,29380.0,0.5099]
[1609465689401,0.98600008,29385.0,29380.0,0.5099]
[1609465689883,0.361262,29384.0,29380.0,0.64506293]
[1609465690192,0.361262,29382.0,29380.0,0.64506293]
[1609465690388,1.34726208,29381.0,29380.0,0.14016293]
[1609465691086,1.34726208,29381.0,29375.0,0.14016293]
[1609465691389,0.98600008,29380.0,29375.0,0.14016293]
[1609465691811,0.17837901,29381.0,29375.0,0.14016293]
[1609465692012,0.98600008,29382.0,29378.0,0.51]
[1609465692013,0.17837901,29382.0,29378.0,0.51]
[1609465692213,0.361262,29381.0,29378.0,0.51]
[1609465692415,0.351262,29381.0,29378.0,0.51]
[1609465692910,0.351262,29381.0,29378.0,0.65016293]
[1609465693111,0.21184713,29385.0,29378.0,0.65016293]
[1609465693315,0.36126,29382.0,29378.0,0.65016293]
[1609465693514,1.17837901,29386.0,29378.0,0.65016293]
[1609465693714,1.16437909,29385.0,29378.0,0.65016293]
[1609465693914,1.53963901,29384.0,29378.0,0.65016293]
[1609465694811,0.53963901,29384.0,29378.0,0.64516293]
[1609465695014,0.36126,29384.0,29378.0,0.64516293]
[1609465695215,0.53839339,29388.0,29378.0,0.64516293]
[1609465695412,1.53963901,29386.0,29378.0,0.64516293]
[1609465695910,1.36126,29386.0,29378.0,0.64516293]
[1609465696314,0.98600008,29385.0,29378.0,0.64516293]
[1609465696817,0.53963901,29384.0,29378.0,0.64516293]
[1609465697017,0.36126,29382.0,29378.0,0.64516293]
[1609465697242,0.98600008,29381.0,29378.0,0.64516293]
[1609465697640,0.225,29380.0,29378.0,0.64516293]
[1609465698040,0.98600008,29379.0,29378.0,0.64516293]
[1609465698245,0.225,29380.0,29378.0,0.64516293]
[1609465698439,0.36126,29379.0,29378.0,0.64516293]
[1609465698744,1.18250457,29386.0,29378.0,0.66017193]
[1609465698944,1.73063909,29385.0,29378.0,0.5]
[1609465699243,0.53963901,29383.0,29378.0,0.5]
[1609465699445,0.53963901,29381.0,29378.0,0.5]
[1609465699649,0.36126,29379.0,29373.0,1.82006293]
[1609465699945,0.36126,29377.0,29373.0,1.14016293]
[1609465700149,0.98600008,29376.0,29373.0,1.0]
[1609465700340,0.36126,29375.0,29373.0,1.0]
[1609465700548,1.56951008,29375.0,29371.0,0.6344]
[1609465701046,1.74788909,29375.0,29371.0,0.6344]
[1609465701243,0.36126,29373.0,29367.0,1.82016293]
[1609465701546,0.275,29374.0,29368.0,0.015029]
[1609465702341,0.22225,29375.0,29368.0,0.015029]
[1609465702645,0.5769058,29380.0,29367.0,1.82016293]
[1609465702646,1.53963901,29379.0,29367.0,1.82016293]
[1609465702862,0.53963901,29377.0,29367.0,1.82016293]
[1609465703063,1.475,29379.0,29367.0,1.82016293]
[1609465703064,1.16437909,29376.0,29367.0,1.82016293]
[1609465703262,0.98600008,29375.0,29368.0,0.015031]
[1609465703463,1.20330008,29375.0,29368.0,0.01503]
[1609465703860,1.20330008,29375.0,29368.0,0.15519293]
[1609465704064,1.56726008,29374.0,29368.0,0.14016293]
[1609465704270,0.36126,29372.0,29368.0,0.14016293]
[1609465704474,2.31126,29369.0,29368.0,0.14016293]
[1609465704751,2.54958,29369.0,29368.0,0.14016293]
[1609465704905,3.53558008,29369.0,29365.0,0.00103408]
[1609465705410,2.72795901,29369.0,29362.0,1.6756]
[1609465705608,0.59958,29369.0,29362.0,0.6756]
[1609465705808,0.23832,29369.0,29363.0,0.015046]
[1609465706111,0.5102,29371.0,29363.0,0.015046]
[1609465707139,0.68857901,29371.0,29363.0,0.015046]
[1609465707741,0.17837901,29373.0,29363.0,0.015046]
[1609465707941,1.05357901,29374.0,29363.0,0.010046]
[1609465708139,1.34837901,29373.0,29363.0,0.010046]
[1609465709242,0.31606812,29376.0,29364.0,0.53182099]
[1609465709243,0.2826,29376.0,29364.0,0.53182099]
[1609465709448,0.00413342,29378.0,29365.0,0.03165799]
[1609465709643,0.00413342,29378.0,29365.0,0.57509567]
[1609465709845,1.0355,29382.0,29366.0,0.45162099]
[1609465709846,0.00413316,29380.0,29366.0,0.45162099]
[1609465710043,0.00413316,29380.0,29367.0,0.57508667]
[1609465710370,0.00413316,29380.0,29367.0,1.7152496]
[1609465710573,0.00413316,29380.0,29368.0,0.56505867]
[1609465710773,0.00413316,29380.0,29369.0,0.03164599]
[1609465711077,0.00413316,29380.0,29371.0,0.53162099]
[1609465711078,0.98600008,29380.0,29371.0,0.53162099]
[1609465711270,0.98600008,29380.0,29372.0,0.01002]
[1609465711472,0.361266,29381.0,29372.0,1.0]
[1609465711675,0.98600008,29380.0,29372.0,1.0]
[1609465711873,0.98600008,29382.0,29372.0,1.0]
[1609465712174,0.98600008,29382.0,29372.0,1.10112]
[1609465712372,0.361266,29381.0,29372.0,1.10112]
[1609465712671,0.361266,29380.0,29372.0,1.24128293]
[1609465713073,0.00413292,29383.0,29373.0,0.010019]
[1609465713278,0.98600008,29382.0,29372.0,1.24128293]
[1609465713975,0.225,29381.0,29372.0,1.14016293]
[1609465714179,0.98600008,29381.0,29373.0,0.010019]
[1609465714375,0.361266,29380.0,29372.0,1.14016293]
[1609465714579,0.98600008,29381.0,29373.0,0.010017]
[1609465714776,0.98600008,29381.0,29373.0,0.14016293]
[1609465715076,0.361266,29381.0,29373.0,0.14016293]
[1609465715275,0.586266,29381.0,29373.0,0.14016293]
[1609465715480,1.57226608,29381.0,29373.0,0.14016293]
[1609465715677,0.98600008,29380.0,29373.0,0.14016293]
[1609465715879,1.21100008,29381.0,29374.0,0.010017]
[1609465716095,1.21100008,29381.0,29374.0,1.0]
[1609465716298,0.98600008,29381.0,29374.0,1.14016293]
[1609465716697,0.145,29380.0,29374.0,1.14016293]
[1609465717405,0.98600008,29382.0,29374.0,1.14016293]
[1609465717599,0.361266,29381.0,29374.0,1.14016293]
[1609465717798,1.34726608,29381.0,29374.0,1.14016293]
[1609465717995,0.361266,29381.0,29374.0,1.14016293]
[1609465718496,1.34726608,29381.0,29374.0,1.14016293]
[1609465718896,1.15100008,29380.0,29374.0,1.14016293]
[1609465719103,1.34726608,29379.0,29374.0,1.14016293]
[1609465719297,0.98600008,29378.0,29374.0,1.14016293]
[1609465719779,0.361266,29377.0,29374.0,1.14016293]
[1609465719937,0.98600008,29376.0,29374.0,1.14016293]
[1609465720135,2.136266,29375.0,29374.0,1.14016293]
[1609465720336,3.33357608,29375.0,29374.0,1.14016293]
[1609465720835,3.33357608,29375.0,29374.0,1.0]
[1609465721441,3.51195509,29375.0,29368.0,0.14016293]
[1609465721671,0.361266,29373.0,29368.0,0.14016293]
[1609465721875,0.53964501,29373.0,29364.0,1.81096293]
[1609465722067,0.361266,29373.0,29364.0,1.81096293]
[1609465722272,0.33180302,29372.0,29364.0,1.81096293]
[1609465722473,1.51100008,29374.0,29364.0,1.81096293]
[1609465722673,0.361266,29373.0,29364.0,1.81096293]
[1609465723278,0.17837901,29377.0,29365.0,0.010037]
[1609465723476,0.29123514,29378.0,29365.0,0.55347468]
[1609465723672,0.33180302,29377.0,29365.0,0.69363761]
[1609465724071,1.16851423,29378.0,29365.0,0.69363761]
[1609465724271,1.16851423,29378.0,29366.0,0.54343768]
[1609465724479,0.17837901,29377.0,29365.0,0.68360061]
[1609465724673,0.35337901,29377.0,29366.0,0.010031]
[1609465724874,0.35337901,29377.0,29368.0,1.0]
[1609465725176,0.86347901,29377.0,29369.0,0.010028]
[1609465725401,0.53964501,29376.0,29368.0,1.0]
[1609465725595,0.35337901,29377.0,29368.0,1.0]
[1609465725895,0.35337901,29377.0,29368.0,1.14016293]
[1609465726194,0.98600008,29378.0,29368.0,1.14016293]
[1609465726195,0.37837901,29376.0,29368.0,1.14016293]
[1609465726397,0.37837901,29376.0,29369.0,0.010029]
[1609465726596,0.2,29376.0,29368.0,1.14016293]
[1609465727100,0.195,29376.0,29369.0,0.010028]
[1609465727499,0.361266,29377.0,29370.0,1.38516293]
[1609465727804,1.34726608,29377.0,29370.0,1.14016293]
[1609465728298,0.361266,29377.0,29370.0,1.14016293]
[1609465728495,1.34726608,29377.0,29370.0,1.14016293]
[1609465728901,0.98600008,29377.0,29370.0,1.14016293]
[1609465729103,0.99634468,29378.0,29371.0,0.65026293]
[1609465729297,0.361266,29377.0,29371.0,0.65026293]
[1609465729898,0.00413716,29378.0,29371.0,0.65026293]
[1609465730105,0.0041393,29377.0,29372.0,0.15018593]
[1609465730704,0.0041393,29377.0,29373.0,0.245]
[1609465731039,0.00413942,29378.0,29373.0,1.245]
[1609465731334,0.00413942,29378.0,29373.0,1.14016293]
[1609465731532,0.00413942,29378.0,29374.0,0.010019]
[1609465731733,0.00413942,29378.0,29373.0,1.14016293]
[1609465732139,0.361266,29377.0,29374.0,0.14016293]
[1609465732443,0.2,29376.0,29374.0,0.14016293]
[1609465732637,0.361266,29375.0,29374.0,0.14016293]
[1609465732843,0.00413938,29377.0,29374.0,0.14016293]
[1609465733035,1.34726608,29376.0,29374.0,0.14016293]
[1609465733638,1.0,29375.0,29374.0,0.14016293]
[1609465733835,2.69726608,29375.0,29374.0,0.14016293]
[1609465734039,1.711266,29375.0,29374.0,0.14016293]
[1609465734961,2.69726608,29375.0,29373.0,1.14016293]
[1609465735160,1.261266,29374.0,29373.0,1.14016293]
[1609465735362,1.691266,29374.0,29373.0,1.14016293]
[1609465735759,0.791266,29374.0,29373.0,1.14016293]
[1609465736266,0.17837901,29375.0,29373.0,1.14016293]
[1609465736461,0.361266,29374.0,29373.0,1.14016293]
[1609465736700,0.17837901,29375.0,29373.0,1.14016293]
[1609465736903,1.261266,29374.0,29373.0,1.14016293]
[1609465737099,1.476266,29374.0,29373.0,1.14016293]
[1609465737904,0.576266,29374.0,29373.0,1.14016293]
[1609465738104,0.53964501,29374.0,29373.0,1.14016293]
[1609465738302,1.261266,29374.0,29373.0,1.14016293]
[1609465738605,0.53964501,29374.0,29373.0,1.14016293]
[1609465738807,0.18252121,29375.0,29373.0,1.14016293]
[1609465739004,3.711266,29374.0,29373.0,1.14016293]
[1609465739315,5.48564509,29374.0,29373.0,1.14016293]
[1609465739706,0.971266,29374.0,29373.0,1.14016293]
[1609465739906,0.361266,29374.0,29373.0,1.14016293]
[1609465740112,0.36540844,29374.0,29373.0,1.0]
[1609465740544,0.36540844,29374.0,29367.0,1.0]
[1609465740739,0.00414244,29374.0,29367.0,1.0]
[1609465740940,0.00414244,29374.0,29368.0,0.145]
[1609465741144,0.00414244,29374.0,29368.0,0.28819593]
[1609465741343,0.00414244,29374.0,29368.0,0.14016293]
[1609465741541,0.00414244,29374.0,29368.0,0.12616293]
[1609465742240,0.00414244,29374.0,29367.0,1.14016293]
[1609465742443,0.00414244,29374.0,29369.0,0.010031]
[1609465742641,0.00414244,29374.0,29370.0,1.0]
[1609465742845,0.361266,29373.0,29370.0,1.0]
[1609465743250,0.00414244,29374.0,29370.0,1.14016293]
[1609465743549,0.00414244,29374.0,29372.0,0.15]
[1609465743947,0.00414244,29374.0,29373.0,1.510025]
[1609465744204,0.00414206,29375.0,29373.0,1.510025]
[1609465744349,0.00414206,29375.0,29373.0,1.65018793]
[1609465744650,0.00414206,29375.0,29374.0,3.010022]
[1609465744948,0.00414206,29375.0,29374.0,3.890022]
[1609465745249,0.00414162,29379.0,29375.0,3.05018093]
[1609465745448,0.59283249,29384.0,29376.0,0.010015]
[1609465745449,0.00414147,29381.0,29376.0,0.010015]
[1609465745848,0.00414147,29381.0,29377.0,0.51]
[1609465746064,0.00414147,29382.0,29378.0,0.01001]
[1609465746265,0.00414147,29382.0,29378.0,0.34001]
[1609465746470,0.00413879,29383.0,29378.0,0.01001]
[1609465746864,0.00413875,29384.0,29378.0,0.01001]
[1609465747963,0.00413887,29383.0,29378.0,0.01001]
[1609465748365,0.00413887,29383.0,29378.0,0.15017293]
[1609465748662,0.00413783,29384.0,29378.0,0.15017293]
[1609465749905,0.00413783,29384.0,29378.0,1.15017293]
[1609465750707,1.34226608,29386.0,29380.0,0.39]
[1609465750908,0.361266,29384.0,29379.0,0.14016293]
[1609465751105,0.361266,29384.0,29380.0,1.0]
[1609465751309,0.98100008,29383.0,29380.0,1.0]
[1609465751608,0.361266,29384.0,29380.0,1.0]
[1609465751837,0.98100008,29383.0,29380.0,1.14016293]
[1609465752037,0.361266,29382.0,29380.0,1.14016293]
[1609465752536,0.616266,29386.0,29380.0,1.14016293]
[1609465752843,0.361266,29384.0,29380.0,1.14016293]
[1609465753037,1.34226608,29384.0,29380.0,1.14016293]
[1609465753438,0.98100008,29383.0,29380.0,1.14016293]
[1609465753635,0.361266,29382.0,29380.0,1.14016293]
[1609465753837,0.98100008,29381.0,29380.0,1.14016293]
[1609465754037,1.54226608,29381.0,29380.0,1.14016293]
[1609465754347,0.361266,29386.0,29380.0,1.0]
[1609465754538,1.34226608,29386.0,29380.0,1.0]
[1609465755559,0.361266,29386.0,29380.0,1.0]
[1609465756160,0.361266,29386.0,29380.0,1.14016293]
[1609465756363,0.36001438,29388.0,29381.0,0.17]
[1609465756663,0.361266,29386.0,29381.0,0.17]
[1609465757463,0.361266,29386.0,29381.0,0.31016293]
[1609465757664,0.361266,29386.0,29381.0,0.14016293]
[1609465757969,0.98100008,29387.0,29381.0,0.14016293]
[1609465758165,0.361266,29386.0,29382.0,0.01073166]
[1609465758372,0.36001438,29388.0,29382.0,1.01073166]
[1609465758572,0.36001438,29388.0,29383.0,0.329997]
[1609465759070,0.36001438,29388.0,29387.0,0.009991]
[1609465759273,4.38e-06,29388.0,29387.0,4.359991]
[1609465759475,4.38e-06,29388.0,29387.0,5.359991]
[1609465759671,4.38e-06,29388.0,29387.0,4.359991]
[1609465760068,0.259601,29391.0,29387.0,5.019991]
[1609465760069,0.25460538,29391.0,29387.0,5.019991]
[1609465760269,0.25460538,29391.0,29390.0,4.359982]
[1609465760472,0.25460538,29391.0,29390.0,4.517102]
[1609465761311,0.25460538,29391.0,29390.0,5.227102]
[1609465761516,0.25460538,29391.0,29390.0,0.877102]
[1609465761715,0.24460538,29391.0,29390.0,0.609982]
[1609465762113,0.24460538,29391.0,29390.0,2.609982]
[1609465763017,0.24460538,29391.0,29390.0,3.809982]
[1609465763316,0.24460538,29391.0,29390.0,4.444982]
[1609465763717,0.24460538,29391.0,29390.0,4.45571129]
[1609465766013,0.24460538,29391.0,29390.0,5.00571129]
[1609465766412,0.24460538,29391.0,29390.0,6.50571129]
[1609465768211,0.24460538,29391.0,29390.0,6.00571129]
[1609465768412,0.34714732,29391.0,29390.0,6.00571129]
[1609465768611,0.24460538,29391.0,29390.0,6.00571129]
[1609465769317,0.24460538,29391.0,29390.0,5.45571129]
[1609465770115,0.24460538,29391.0,29390.0,6.35571129]
[1609465771032,13.18252578,29386.0,29384.0,0.90122099]
[1609465771235,13.18252578,29386.0,29385.0,3.7096]
[1609465771631,13.18252578,29386.0,29385.0,0.5096]
[1609465772135,13.18252578,29386.0,29385.0,2.7596]
[1609465772934,13.18252578,29386.0,29385.0,4.4596]
[1609465773134,13.18252578,29386.0,29385.0,4.6346]
[1609465774237,13.18252578,29386.0,29385.0,4.6296]
[1609465776037,13.18252578,29386.0,29385.0,4.76976293]
[1609465776262,13.18252578,29386.0,29385.0,3.06976293]
[1609465776461,13.18252578,29386.0,29385.0,2.89476293]
[1609465776961,13.18252578,29386.0,29385.0,4.99476293]
[1609465780064,13.18252578,29386.0,29385.0,2.89476293]
[1609465780266,13.18252578,29386.0,29385.0,2.7546]
[1609465780966,13.18252578,29386.0,29385.0,5.1146]
[1609465781167,13.18252578,29386.0,29385.0,5.25476293]
[1609465781363,13.77055632,29386.0,29385.0,5.25476293]
[1609465782819,13.77055632,29386.0,29385.0,3.15476293]
[1609465783321,13.76752894,29386.0,29385.0,5.25476293]
[1609465785121,13.75752894,29386.0,29385.0,5.25476293]
[1609465785737,13.75252894,29386.0,29385.0,5.25476293]
[1609465786739,13.75252894,29386.0,29385.0,5.24076293]
[1609465787137,13.75252894,29386.0,29385.0,3.14076293]
[1609465787460,13.75252894,29386.0,29385.0,2.88076293]
[1609465787861,13.75252894,29386.0,29385.0,4.48076293]
[1609465788867,13.75252894,29386.0,29385.0,4.56750316]
[1609465789789,13.75252894,29386.0,29385.0,2.96750316]
[1609465790792,13.75252894,29386.0,29385.0,5.06750316]
[1609465791392,13.75252894,29386.0,29385.0,2.96750316]
[1609465791590,13.75252894,29386.0,29385.0,3.45250316]
[1609465791792,13.75252894,29386.0,29385.0,4.20250316]
[1609465792892,13.75252894,29386.0,29385.0,4.90250316]
[1609465793293,13.75252894,29386.0,29385.0,3.45250316]
[1609465793691,13.75252894,29386.0,29385.0,5.30250316]
[1609465794937,13.75252894,29386.0,29385.0,3.45250316]
[1609465795341,13.75252894,29386.0,29385.0,3.55250316]
[1609465795840,13.07322894,29386.0,29385.0,5.77562981]
[1609465796138,12.61092904,29386.0,29385.0,5.77562981]
[1609465796740,12.61092904,29386.0,29385.0,5.65250316]
[1609465797440,12.61092904,29386.0,29385.0,5.87313316]
[1609465798539,12.56980424,29386.0,29385.0,5.87313316]
[1609465799043,12.56980424,29386.0,29385.0,4.87313316]
[1609465799243,12.56980424,29386.0,29385.0,4.77556621]
[1609465799541,12.56980424,29386.0,29385.0,4.65250316]
[1609465800558,12.56980424,29386.0,29385.0,5.67555551]
[1609465800760,12.56980424,29386.0,29385.0,4.77555551]
[1609465800961,12.56980424,29386.0,29385.0,4.65250316]
[1609465801660,12.56980424,29386.0,29385.0,5.55250316]
[1609465802061,12.56980424,29386.0,29385.0,5.57412415]
[1609465802258,12.56980424,29386.0,29385.0,5.55250316]
[1609465802663,12.56980424,29386.0,29385.0,5.65250316]
[1609465803262,12.56980424,29386.0,29385.0,5.55250316]
[1609465803461,12.56980424,29386.0,29385.0,5.65250316]
[1609465806285,12.56980424,29386.0,29385.0,3.45250316]
[1609465806486,12.56980424,29386.0,29385.0,5.36234023]
[1609465806789,12.56980424,29386.0,29385.0,3.31234023]
[1609465807587,12.56980424,29386.0,29385.0,5.60250316]
[1609465808489,12.56515174,29386.0,29385.0,5.60250316]
[1609465808690,12.4972508,29386.0,29385.0,5.60250316]
[1609465809188,12.4972508,29386.0,29385.0,5.70250316]
[1609465809690,12.4972508,29386.0,29385.0,3.40250316]
[1609465810456,12.4972508,29386.0,29385.0,3.71750316]
[1609465810656,12.4972508,29386.0,29385.0,2.91750316]
[1609465811556,12.4972508,29386.0,29385.0,3.96750316]
[1609465812192,12.4972508,29386.0,29385.0,2.91750316]
[1609465813493,12.4972508,29386.0,29385.0,4.21750316]
[1609465813691,12.4972508,29386.0,29385.0,2.91750316]
[1609465813896,12.4972508,29386.0,29385.0,3.30250316]
[1609465816023,12.4967508,29386.0,29385.0,3.30250316]
[1609465816421,12.4967508,29386.0,29385.0,3.86750316]
[1609465816624,12.4967508,29386.0,29385.0,2.91750316]
[1609465817424,12.4967508,29386.0,29385.0,4.46750316]
[1609465817626,12.4967508,29386.0,29385.0,2.91750316]
[1609465819030,12.4967508,29386.0,29385.0,3.16750316]
[1609465820530,12.4967508,29386.0,29385.0,3.29004151]
[1609465820734,14.77775088,29386.0,29385.0,0.77734023]
[1609465820937,15.172474,29386.0,29385.0,0.52734023]
[1609465821141,15.35085301,29386.0,29385.0,0.4406]
[1609465821364,6.27143703,29385.0,29384.0,0.26279322]
[1609465821565,7.25243711,29385.0,29384.0,0.14016293]
[1609465821759,7.28590523,29385.0,29381.0,0.12272951]
[1609465821961,5.72063409,29382.0,29381.0,0.12272951]
[1609465822266,1.3128031,29380.0,29375.0,0.245]
[1609465822460,0.51018203,29378.0,29375.0,0.245]
[1609465822763,0.33180302,29376.0,29375.0,0.245]
[1609465823159,0.59180302,29376.0,29375.0,0.245]
[1609465823362,0.1,29376.0,29375.0,1.695]
[1609465823562,1.13006265,29383.0,29375.0,1.695]
[1609465823762,0.295,29380.0,29375.0,1.695]
[1609465823966,0.43180302,29381.0,29379.0,0.25]
[1609465824267,0.1,29381.0,29379.0,0.25]
[1609465825032,0.1,29381.0,29380.0,1.45]
[1609465825384,0.095,29381.0,29380.0,1.64816]
[1609465825583,0.095,29381.0,29380.0,0.44816]
[1609465825584,0.255,29381.0,29380.0,0.44816]
[1609465825782,0.095,29381.0,29380.0,0.44816]
[1609465826182,0.095,29381.0,29380.0,0.95796]
[1609465826584,0.095,29384.0,29380.0,0.95796]
[1609465826789,0.98100008,29383.0,29380.0,0.95796]
[1609465827011,0.24,29382.0,29380.0,0.95796]
[1609465827318,0.095,29381.0,29380.0,0.95796]
[1609465827514,0.095,29381.0,29380.0,0.7598]
[1609465827712,1.07100008,29381.0,29380.0,0.7598]
[1609465828215,0.98100008,29381.0,29380.0,0.7598]
[1609465828411,0.98100008,29383.0,29380.0,1.7098]
[1609465828619,0.33180302,29382.0,29381.0,4.5]
[1609465828921,0.2170001,29385.0,29382.0,0.485]
[1609465829112,0.2170001,29385.0,29382.0,0.81016293]
[1609465830015,0.2170001,29385.0,29384.0,4.65]
[1609465830217,0.2120001,29385.0,29384.0,4.79016293]
[1609465830413,0.2120001,29385.0,29384.0,0.87516293]
[1609465830643,0.54380312,29385.0,29384.0,0.39016293]
[1609465830844,0.2120001,29385.0,29384.0,0.39016293]
[1609465831247,0.2120001,29385.0,29384.0,2.45]
[1609465831645,0.2120001,29385.0,29384.0,2.59]
[1609465832246,0.2120001,29385.0,29384.0,2.49]
[1609465832745,0.2120001,29385.0,29384.0,0.25]
[1609465833246,0.2120001,29385.0,29384.0,1.25]
[1609465833445,0.3020001,29385.0,29384.0,1.25]
[1609465833646,0.2120001,29385.0,29384.0,1.25]
[1609465835049,0.2120001,29385.0,29384.0,0.25]
[1609465835453,2.26300018,29385.0,29384.0,0.25]
[1609465835656,2.46300018,29385.0,29384.0,0.25]
[1609465836057,2.82425518,29385.0,29384.0,0.25]
[1609465836267,3.00263419,29385.0,29384.0,0.25]
[1609465836470,3.36790533,29385.0,29384.0,0.25]
[1609465836669,2.4964683,29385.0,29384.0,0.39016293]
[1609465836870,2.46300018,29385.0,29384.0,0.39016293]
[1609465837573,2.26300018,29385.0,29384.0,0.39016293]
[1609465837773,2.26300018,29385.0,29384.0,0.40089453]
[1609465838174,2.26300018,29385.0,29384.0,0.2607316]
[1609465839378,2.82425518,29385.0,29384.0,0.2607316]
[1609465840422,1.2820001,29385.0,29384.0,0.2607316]
[1609465840626,1.61380312,29385.0,29384.0,0.2607316]
[1609465841424,1.6432551,29385.0,29384.0,0.2607316]
[1609465842057,1.5532551,29385.0,29384.0,0.2607316]
[1609465842260,1.61380312,29385.0,29384.0,0.2607316]
[1609465842461,2.76818221,29385.0,29384.0,0.2607316]
[1609465842859,3.32943721,29385.0,29384.0,0.2607316]
[1609465843258,3.11922419,29385.0,29384.0,0.2607316]
[1609465843462,3.15269231,29385.0,29384.0,0.2607316]
[1609465843658,3.48449533,29385.0,29384.0,0.2607316]
[1609465843858,3.45102721,29385.0,29384.0,0.2607316]
[1609465844162,3.11922419,29385.0,29384.0,0.2607316]
[1609465844360,3.45102721,29385.0,29384.0,0.2607316]
[1609465844563,2.99763419,29385.0,29384.0,0.2607316]
[1609465844760,3.32943721,29385.0,29384.0,0.2607316]
[1609465845259,2.99763419,29385.0,29384.0,0.2607316]
[1609465845562,1.81663411,29385.0,29384.0,0.2607316]
[1609465845781,2.79763419,29385.0,29384.0,0.2607316]
[1609465846789,3.32943721,29385.0,29384.0,0.2607316]
[1609465847089,3.82290533,29385.0,29384.0,0.2557316]
[1609465847292,3.82290533,29385.0,29384.0,1.6e-06]
[1609465847591,4.06011394,29385.0,29384.0,1.6e-06]
[1609465848389,4.57001394,29385.0,29384.0,1.6e-06]
[1609465848793,4.67014095,29385.0,29384.0,1.6e-06]
[1609465848993,4.57001394,29385.0,29384.0,1.6e-06]
[1609465849194,0.58407534,29383.0,29375.0,0.2320016]
[1609465849503,1.96757683,29385.0,29376.0,0.01]
[1609465849504,0.33180302,29382.0,29376.0,0.01]
[1609465849899,0.28,29381.0,29373.0,0.55074259]
[1609465850098,0.53880312,29385.0,29373.0,0.5291216]
[1609465850296,0.53880312,29385.0,29373.0,1.55074259]
[1609465850890,0.53880312,29385.0,29373.0,1.5291216]
[1609465851100,0.2070001,29385.0,29379.0,0.6797]
[1609465851338,0.27,29384.0,29379.0,0.6797]
[1609465851937,0.27,29384.0,29379.0,0.81988245]
[1609465852436,0.27,29384.0,29379.0,0.80988245]
[1609465853034,0.265,29384.0,29379.0,0.80988245]
[1609465853239,0.7,29383.0,29379.0,0.80988245]
[1609465853542,0.38537911,29385.0,29379.0,0.6697]
[1609465853740,0.53880312,29385.0,29379.0,0.6697]
[1609465853939,1.69818221,29385.0,29379.0,0.6697]
[1609465854142,1.15937909,29384.0,29379.0,0.6697]
[1609465854342,0.54365015,29383.0,29377.0,0.6797]
[1609465854646,0.54365015,29383.0,29373.0,1.5291216]
[1609465854841,0.32346812,29382.0,29373.0,1.5291216]
[1609465855104,0.47837901,29381.0,29373.0,1.5291216]
[1609465855305,0.21184713,29383.0,29373.0,1.5291216]
[1609465855503,0.98100008,29382.0,29373.0,1.5291216]
[1609465855712,0.51018203,29381.0,29373.0,2.0390216]
[1609465855906,0.51018203,29380.0,29373.0,2.0390216]
[1609465856105,0.90490515,29379.0,29373.0,2.0390216]
[1609465856405,0.64180302,29378.0,29373.0,1.0390216]
[1609465856611,0.55029,29378.0,29373.0,1.0390216]
[1609465856906,0.24029,29378.0,29373.0,1.0390216]
[1609465857707,0.361255,29377.0,29371.0,0.6457]
[1609465857913,0.361255,29377.0,29372.0,1.0]
[1609465857914,0.245,29376.0,29372.0,1.0]
[1609465858109,0.361255,29375.0,29372.0,1.0]
[1609465859405,0.361255,29375.0,29371.0,0.6457]
[1609465859807,0.361255,29375.0,29370.0,0.6799]
[1609465860824,0.21184713,29382.0,29370.0,0.6799]
[1609465861024,0.33180302,29380.0,29370.0,0.6799]
[1609465861224,1.49118211,29380.0,29370.0,0.6799]
[1609465861422,0.33180302,29378.0,29370.0,0.6799]
[1609465861726,0.361255,29377.0,29370.0,0.6799]
[1609465862525,0.361255,29377.0,29370.0,0.70152099]
[1609465862925,0.361255,29377.0,29370.0,0.6799]
[1609465863525,0.361255,29377.0,29370.0,0.70152099]
[1609465863827,1.34225508,29377.0,29370.0,0.6799]
[1609465864131,1.18100008,29376.0,29370.0,0.6799]
[1609465864325,0.361255,29375.0,29370.0,0.6799]
[1609465865430,0.2,29376.0,29370.0,0.6799]
[1609465865627,0.03346812,29380.0,29370.0,0.6799]
[1609465865829,1.34225508,29379.0,29370.0,0.70152099]
[1609465866131,0.611255,29377.0,29370.0,0.70152099]
[1609465866362,0.66427114,29383.0,29370.0,0.70152099]
[1609465866560,0.361255,29381.0,29370.0,0.70152099]
[1609465866863,0.98100008,29383.0,29370.0,0.70152099]
[1609465867365,0.18,29382.0,29370.0,2.11802099]
[1609465868158,0.33180302,29383.0,29370.0,2.25820344]
[1609465868458,0.03346812,29384.0,29370.0,2.25820344]
[1609465868664,0.2070001,29385.0,29370.0,3.25820344]
[1609465868868,0.2070001,29385.0,29371.0,0.57553422]
[1609465869068,0.2070001,29385.0,29377.0,0.5099]
[1609465869265,0.2070001,29385.0,29377.0,0.75238]
[1609465869662,0.2070001,29385.0,29379.0,1.0]
[1609465870287,0.2070001,29385.0,29380.0,0.26]
[1609465871087,0.2070001,29385.0,29382.0,0.5098]
[1609465871286,0.2020001,29385.0,29382.0,0.5098]
[1609465872321,0.2020001,29385.0,29382.0,1.5098]
[1609465872525,0.2020001,29385.0,29382.0,1.64998245]
[1609465872824,9.36031755,29381.0,29377.0,1.15032099]
[1609465873023,9.36031755,29381.0,29377.0,1.1287]
[1609465873219,9.36031755,29381.0,29376.0,1.43638]
[1609465873220,1.0,29380.0,29376.0,1.43638]
[1609465874423,1.0,29380.0,29376.0,1.3531]
[1609465874626,1.0,29380.0,29379.0,0.5098]
[1609465875225,1.33180302,29380.0,29379.0,0.5098]
[1609465875620,1.0,29380.0,29379.0,0.5098]
[1609465875847,0.995,29380.0,29379.0,0.5098]
[1609465876047,1.32680302,29380.0,29379.0,0.5098]
[1609465876347,0.995,29380.0,29379.0,0.5098]
[1609465879254,1.32680302,29380.0,29379.0,0.5098]
[1609465879456,0.995,29380.0,29376.0,1.4932824]